Cogmind - Beta 13 @@@ ROGUE MODE // 2024.04.13 @ 14:48:57 Player: Cheeriohz Result: Destroyed by T8-M0D(R) with Subdweller Beam Cannon Performance ------------- Evolutions (0) 0 Regions Visited (2) 400 Robots Destroyed (25) 125 Value Destroyed (637) 637 Prototype IDs (11) 220 Alien Tech Used (0) 0 Bonus (0) 0 TOTAL SCORE: 1382 Bonus ------- None Cogmind --------- Core Integrity 0/250 Matter 279/300 Energy 200/200 System Corruption 0% Temperature Cool (9) Movement Rolling (110) Location -10/Subcaves Parts ------- > --- POWER (1) -------- Subdweller Power Source > --- PROPULSION (2) --- Subdweller Monowheel Subdweller Monowheel > --- UTILITY (2) ------ Makeshift Light Armor Plating > --- WEAPON (2) ------- Subdweller Machine Gun Battle Cannon > --- INVENTORY (5) ---- Flightbrick Hacking Suite Peak State ------------ > --- POWER ------------ Ion Engine > --- PROPULSION ------- Subdweller Monowheel Subdweller Monowheel > --- UTILITY ---------- Scrap Shield > --- WEAPON ----------- Subdweller Beam Cannon Barrage Gun > --- INVENTORY -------- Flightbrick Hacking Suite [Rating: 17] Favorites ----------- Power Ion Engine Engine Ion Engine Propulsion Improved Treads Treads Improved Treads Leg Aluminum Leg Wheel Subdweller Monowheel Utility High-capacity Matter Pod Storage High-capacity Matter Pod Protection Core Shielding Weapon Advanced Beam Cannon Energy Gun Medium Laser Energy Cannon Advanced Beam Cannon Ballistic Gun Assault Rifle Ballistic Cannon Light Cannon Build | -11 -10 -10 ------- Run | Yrd Mat Sub Slots Evolved . | . . . Power . | . . . Propulsion . | . . . Utility . | . . . Weapon . | . . . Parts Attached 25 | . 12 13 Power 2 | . 1 1 Engine 2 | . 1 1 Core . | . . . Reactor . | . . . Propulsion 8 | . 4 4 Treads 2 | . 2 . Leg . | . . . Wheel 6 | . 2 4 Hover . | . . . Flight . | . . . Utility 5 | . 3 2 Device . | . . . Storage 2 | . 2 . Processor . | . . . Hackware . | . . . Protection 3 | . 1 2 Artifact . | . . . Weapon 10 | . 4 6 Energy Gun 1 | . . 1 Energy Cannon 2 | . 1 1 Ballistic Gun 5 | . 2 3 Ballistic Cannon 2 | . 1 1 Launcher . | . . . Special Weapon . | . . . Impact Weapon . | . . . Slashing Weapon . | . . . Piercing Weapon . | . . . Special Melee Weapon . | . . . Unidentified Prototypes 1 | . 1 . Parts Lost 4 | . . 4 Power 1 | . . 1 Propulsion . | . . . Utility 1 | . . 1 Weapon 2 | . . 2 Highest Loss Streak 4 | . . 4 To Critical Strikes . | . . . Average Slot Usage (%) 93 | . 99 77 Engine 13 | . 14 13 Treads 14 | . 17 6 Leg 1 | . 2 . Wheel 10 | . 8 19 Storage 18 | . 24 . Protection 4 | . 3 10 Energy Gun 2 | . 2 2 Energy Cannon 11 | . 11 9 Ballistic Gun 8 | . 8 8 Ballistic Cannon 4 | . 4 5 Naked Turns . | . . . Heaviest Build 36 | 14 36 35 Greatest Support 46 | 20 46 46 Greatest Overweight (x) 10 | . . 10 Average Overweight (x) . | . . . Largest Inventory Capacity 15 | 8 15 15 Average Capacity 8 | 8 9 5 Most Carried 15 | 6 15 15 Average Carried 8 | 6 9 5 Final Capacity 15 | 8 15 5 Final Carried 15 | 6 15 5 Class Distribution -------------------- 84% | Mutant 9% | Subdweller-Mutant 5% | Scavenger-Mutant Dominant Class ---------------- Mutant | -10/Materials Subdweller-Mutant | -10/Subcaves Resources | -11 -10 -10 ----------- Run | Yrd Mat Sub Matter Collected 895 | 200 482 213 Remotely . | . . . Salvage Created 799 | . 578 221 Parts 55 | . 44 11 Haulers Intercepted . | . . . Recyclers Shooed . | . . . Parts Field Recycled . | . . . Retrieved Matter . | . . . Parts Self-Destructed 8 | . . 8 Prevented . | . . . Kills | -11 -10 -10 ------- Run | Yrd Mat Sub Combat Hostiles Destroyed 20 | . 15 5 Guns 11 | . 8 3 Cannons 9 | . 7 2 Classes Destroyed 6 | . 5 1 Builder 2 | . 2 . Operator 1 | . 1 . Watcher 2 | . 2 . Swarmer 6 | . 6 . Grunt 9 | . 9 . Subdweller 5 | . . 5 Best Kill Streak 4 | . 4 3 Combat Bots Only 4 | . 4 3 Max Kills in Single Turn 1 | . 1 1 Gunslinging . | . . . Exploded . | . . . Melee . | . . . Uniques/NPCs Destroyed . | . . . Combat | -11 -10 -10 -------- Run | Yrd Mat Sub Hostile Shots Fired 106 | . 59 47 Missed 24 | . 16 8 Damage Taken 1305 | . 425 880 Core 261 | . 38 223 Absorbed by Shields . | . . . Regen/Repaired (Parts) 76 | . 76 . Core Remaining (%) 100 | 100 . . Volleys Fired 101 | . 71 30 Largest 2 | . 2 2 Hottest 108 | . 88 108 Shots Fired 172 | . 125 47 Gun 99 | . 75 24 Cannon 73 | . 50 23 Launcher . | . . . Special . | . . . Kinetic 85 | . 54 31 Thermal 87 | . 71 16 Explosive . | . . . Electromagnetic . | . . . Robot Hit Streak 14 | . 11 14 Robot Miss Streak 3 | . 3 2 Penetration Max . | . . . Secondary Targets 1 | . 1 . Max Gunslinging Chain 1 | . 1 . Shots Hit Robots 111 | . 76 35 Core Hits 33 | . 25 8 Critical Kills . | . . . Critical Parts Destroyed . | . . . Critical Strikes . | . . . Melee Attacks . | . . . Impact . | . . . Slashing . | . . . Piercing . | . . . Sneak Attacks . | . . . Combat Hostiles . | . . . Follow-up Attacks . | . . . Damage Inflicted 1907 | . 1213 694 Guns 914 | . 602 312 Cannons 993 | . 611 382 Explosions . | . . . Melee . | . . . Ramming . | . . . Kinetic 906 | . 441 465 Thermal 1001 | . 772 229 Explosive . | . . . Electromagnetic . | . . . Impact . | . . . Slashing . | . . . Piercing . | . . . Highest Corruption . | . . . Average Corruption . | . . . Corruption Purged . | . . . Corruption Blocked . | . . . Overload Shots . | . . . Overflow Damage 3 | . 3 . Projectiles 3 | . 3 . Explosions . | . . . Melee . | . . . Knockbacks 2 | . . 2 Impact . | . . . Kinetic 2 | . . 2 Secondary . | . . . Self-Inflicted Damage . | . . . Shots . | . . . Rammed . | . . . Targets Rammed . | . . . Kicked . | . . . Crushed . | . . . Highest Temperature 290 | . 290 28 Average Temperature 63 | . 66 20 Received Heat Transfer 183 | . 147 36 Siege Activations . | . . . Robots Corrupted . | . . . Combat Hostiles . | . . . Parts Fried . | . . . Impact Corruptions . | . . . Robots Melted . | . . . Combat Hostiles . | . . . Parts Melted 1 | . 1 . Heat Transferred 1912 | . 1591 321 Parts Sabotaged . | . . . Parts Stolen . | . . . Parts Stripped . | . . . Power Chain Reactions . | . . . Alert | -11 -10 -10 ------- Run | Yrd Mat Sub Peak Influence 258 | . 258 . Initial . | . . . Average 88 | . 89 . Maximum Alert Level 1 | . 1 . Low Security (%) 87 | 100 87 . Level 1 12 | . 12 . Level 2 . | . . . Level 3 . | . . . Level 4 . | . . . Level 5 . | . . . High Security . | . . . Max Security . | . . . Squads Dispatched 2 | . 2 . Investigation 1 | . 1 . Extermination . | . . . Reinforcement 1 | . 1 . Assault . | . . . Garrison . | . . . Intercept . | . . . Searches Triggered . | . . . Construction Impeded . | . . . Haulers Reinforced . | . . . Active Scanning Responses . | . . . Cargo Convoy Interrupts . | . . . Stealth | -11 -10 -10 --------- Run | Yrd Mat Sub Distress Signals 2 | . 2 . Communications Jammed . | . . . Distress Signals . | . . . Times Spotted 33 | . 24 9 Peak Tracking Total 5 | . 5 3 Tactical Retreats . | . . . Traps | -11 -10 -10 ------- Run | Yrd Mat Sub Traps Triggered 1 | . 1 . Indirectly . | . . . Trap Hack Attempts . | . . . Triggered . | . . . Disarmed . | . . . Reprogrammed . | . . . Reused . | . . . Traps Extracted . | . . . Installed . | . . . Triggered . | . . . Machines | -11 -10 -10 ---------- Run | Yrd Mat Sub Machines Disabled 1 | . . 1 Max in Single Turn 1 | . . 1 Machines Repaired . | . . . Machines Dismantled . | . . . Machines Sabotaged . | . . . Overloaded Fab Kills . | . . . Hacking | -11 -10 -10 --------- Run | Yrd Mat Sub Machines Accessed 9 | . 8 1 Terminals 7 | . 7 . Fabricators . | . . . Repair Stations 1 | . 1 . Recycling Units . | . . . Scanalyzers . | . . . Garrison Access . | . . . Total Hacks 20 | . 19 1 Successful 9 | . 8 1 Failed 11 | . 11 . Catastrophic 2 | . 2 . Database Lockouts . | . . . Manual 15 | . 15 . Terminals 16 | . 16 . Fabricators . | . . . Repair Stations 3 | . 3 . Recycling Units . | . . . Scanalyzers . | . . . Garrison Access . | . . . Terminal Hacks 2 | . 1 1 Emergency Access Points 1 | . 1 . Derelict Proto ID Bank 1 | . . 1 Fabricator Hacks . | . . . Repair Station Hacks 2 | . 2 . Scan Component 1 | . 1 . Repair 1 | . 1 . Recycling Unit Hacks . | . . . Scanalyzer . | . . . Garrison Access Hacks . | . . . Unauthorized Hacks 5 | . 5 . Terminals 5 | . 5 . Botnet 5 | . 5 . Fabricators . | . . . Repair Stations . | . . . Recycling Units . | . . . Scanalyzers . | . . . Garrison Access . | . . . Data Cores Recovered . | . . . Used . | . . . Hacking Detections 7 | . 7 . Full Trace Events . | . . . Feedback Events . | . . . Feedback Blocked . | . . . Robot Schematics Acquired . | . . . Robots Built . | . . . Authchips . | . . . Time . | . . . Total Robot Build Rating . | . . . Part Schematics Acquired . | . . . Parts Built . | . . . Authchips . | . . . Time . | . . . Total Part Build Rating . | . . . Parts Repaired 1 | . 1 . Time 26 | . 26 . Parts Recycled . | . . . Recycled Matter . | . . . Retrieved Matter . | . . . Retrieved Components . | . . . Parts Scanalyzed . | . . . Part Schematics Acquired . | . . . Parts Damaged . | . . . Bothacking | -11 -10 -10 ------------ Run | Yrd Mat Sub Used RIF Installer . | . . . Robots Hacked . | . . . Non-combat . | . . . Combat . | . . . Robot Hacks Applied . | . . . Relay Couplers Released . | . . . Fabnet Peak Effective % . | . . . Robots Rewired . | . . . Allies Hacked . | . . . Hacks Repelled . | . . . Allies | -11 -10 -10 -------- Run | Yrd Mat Sub Total Allies . | . . . Largest Group . | . . . Highest-Rated Group . | . . . Highest-Rated Ally . | . . . Total Orders . | . . . Ally Attacks . | . . . Total Damage . | . . . Kills . | . . . Allies Corrupted . | . . . Allies Melted . | . . . Intel | -11 -10 -10 ------- Run | Yrd Mat Sub Robot Analysis Total . | . . . Derelict Logs Recovered . | . . . Drone Launches . | . . . Drone Recoveries . | . . . Exploration | -11 -10 -10 ------------- Run | Yrd Mat Sub Turns Passed 1898 | 5 1433 460 Spaces Moved 1092 | 5 819 268 Core 5 | . . 5 Treads 541 | . 493 48 Legs 65 | 5 60 . Wheels 481 | . 266 215 Hover . | . . . Flight . | . . . Fastest Speed 90 | 120 90 110 Average Speed 132 | 120 134 129 Slowest Speed 550 | 120 160 550 Overloaded Moves . | . . . Propulsion Burnouts . | . . . Robots Hopped . | . . . Cave-ins Triggered . | . . . Exploration Rate (%) 37 | 2 99 12 Regions Visited 2 Branch Regions 1 Pre-discovered Areas . | . . . Known Exits Taken . | . . . Unknown Exits Taken 2 | 1 1 . Scrap Searched 6 | . . 6 Spaces Dug . | . . . Terrain Destroyed 1 | . . 1 Melee . | . . . Projectile 1 | . . 1 AOE . | . . . Terrain Rammed . | . . . Walls Destroyed . | . . . Machines Disabled . | . . . Actions | -11 -10 -10 --------- Run | Yrd Mat Sub Total 1375 | 4 1031 340 Wait 113 | . 99 14 Move 1090 | 4 818 268 Hop . | . . . Pick Up 17 | . 16 1 Fast Attach 18 | . 7 11 Attach . | . . . Detach 1 | . 1 . Swap 7 | . 5 2 Drop 28 | . 14 14 Fire 101 | . 71 30 Melee . | . . . Ram . | . . . Kick . | . . . Crush . | . . . Escape Stasis . | . . . Rewire . | . . . Trap . | . . . Miscellaneous . | . . . Route ------- -11/Scrapyard -10/Materials (discovered 5 exits: [*Mat x3] / [*Min] / *Sub) -10/Subcaves History --------- Turn | Location | Event 1 | -11/Scrapyard | Discovered new exit (range 3) 6 | -11/Scrapyard | Entered Materials 320 | -10/Materials | Build established: Mutant 362 | -10/Materials | Discovered new exit (range 14) 421 | -10/Materials | Repaired Assault Rifle 509 | -10/Materials | Discovered new exit (range 16) 708 | -10/Materials | Discovered new exit (range 7) 789 | -10/Materials | Discovered new exit (range 3) 959 | -10/Materials | Discovered new exit (range 15) 1439 | -10/Materials | Entered Subcaves 1603 | -10/Subcaves | Visited 4L-MR0's lab 1621 | -10/Subcaves | Found Flightbrick 1719 | -10/Subcaves | A Subdweller sparked back to life 1719 | -10/Subcaves | A Subdweller sparked back to life 1780 | -10/Subcaves | Core integrity fell below 50% 1788 | -10/Subcaves | Core integrity fell below 20% 1808 | -10/Subcaves | Lost 4 parts (1p1u2w) 1825 | -10/Subcaves | Shifting Twisted Machinery released Sub. Shrapnel Launcher 1891 | -10/Subcaves | Disturbed a concealed Subdweller 1899 | -10/Subcaves | Destroyed by T8-M0D(R) with Subdweller Beam Cannon Last Messages --------------- 01802_ Acquired 30 matter. 01803_ Acquired 1 matter. 01807_ Acquired 51 matter. Sub. Shrapnel Launcher falls loose from the Twisted Machinery. 01869_ Searching scrap... 01869_ Found Sub. Laser. 01869_ Found Mak. Light Armor Plating. 01869_ Found 22 Matter. 01870_ Acquired 5 matter. 01872_ Acquired Mak. Light Armor Plating. 01873_ Searching scrap... 01873_ Found Sub. Machine Gun. 01873_ Found Battle Rifle. 01873_ Found 20 Matter. 01874_ Acquired 10 matter. 01878_ Dropped Sub. Laser. 01878_ Acquired Sub. Machine Gun. 01880_ Acquired 10 matter. 01891_ T8-M0D(R) angrily emerges from the Twisted Machinery. 01895_ T8-M0D(R) knocked back. Map ----- +----------------------------------------------------+ | ?????????????????????????????? """ ?#=! | | ??????????????????????????????# ###"""" ?# | | ??????????????????????????????# #?#"" ### | | ??????????????????????????????# #?""" ## | | ??????????????????????????????# """ " " | | ???????????????????????????????#####"???#" " "## | | ???????????????????????????????????????????????# | | ?????????????????????????????????????????????### | | ?????????????????????????????????????????????# " | | ?????????????????????????????????????????????## | | ??????????????????????????????????????????????## | | ???????????????????????????????????????????????# | | ???????????????????????????????????????????????# | | ???????????????????????????????????????????????# | | ???????????????????????????????????????????????#% | | ??????????????????????????????????????????????##! | | ??????????????????????????????????????????????#%= | | ??????????????????????????????????????????????#! & | | ??????????????????????????????????????????????#= * | | ??????????????????????????????????????????????#% = | | ???????????????????????####?#######????????#####! | | ???????????????????????# ### ##?####### # | | ???????????????????????# ### | | ??????????????????###### ## | | ??????????????????#<[&##< ### # | | ??????????????????#[#R% @ ### ### #### | | ??????????????????# ##<#< #####?## #?# # | | ??????????????????#[%### #####?#???## " | | ??????????????????#"%## ####### | | ??????????????????######## # ## " | | ????????????????????????# & " | | ????????????????????????#### # ## " | | ???????????????????????????### ##### | | ?????????????????????????????####???# #### | | ????????????????????????????????????# ?### | | ??????????????????????????????????? #?? | | ????????????????????????????????? ]" #?# | | ??????????????????????????????? "## #? # | | ?????????????????????????????? ##? | | ?????????????????????????????? #??? | | ????????????????????????????? ### ???##### | | ?????????????????????????????#???# #???????? | | ????????????????????????????????? ####???????? | | ????????????????????????????????## #????????????? | | ????????????????????????????????? ?????????????? | | ?????????????????????????????????????????????????? | | ?????????????????????????????????????????????????? | | ?????????????????????????????????????????????????? | | ?????????????????????????????????????????????????? | | ?????????????????????????????????????????????????? | +----------------------------------------------------+ Best States ------------- Heat Dissipation 25 Energy Generation 15 Energy Capacity 250 Matter Stores 500 Matter Capacity 500 Sight Range 16 Terrain Scan Density 10 Armor Coverage 800 Core Shielding 20 Evasion (%) 55 Recoil Reduction 2 Item Schematics ----------------- None Robot Schematics ------------------ None Fabricated ------------ Nothing Alien Tech Used ----------------- None Achievements -------------- None Challenges ------------ None Game ------ Seed ImprovedServoStorm Manual? 0 Play Time 00:20:13 Cumulative 115.0 hours Start 2024.04.13 @ 14:33:39 End 2024.04.13 @ 14:48:57 Sessions 1 Manual Loads 0 Difficulty Rogue Special Mode None Game No. 109 Rogue 109 Adventurer 0 Explorer 0 Win Type - Total 3 Types 2/0/0/1/0/0/0/0/0 Lore% 51 Gallery% 69 Achievement% 52 Wizard Run 0 Options --------- Layout 1 ASCII 0 Keyboard 1 Movement Numpad Keybinds 0 Fullscreen 1 Font 32/SmallcapsGlow Map View 77x35 Zoom Use 0% Tactical HUD 1 Map Filters NONE Filters NONE Steam 1 RUN: 7d4460a0-e7dc-4c7a-a1a5-502bf43aa017